fUST/lending_fUST_20250128
["ID","MTS","AMOUNT","RATE_DAILY","PERIOD"]
[350637956,1738012145326,-500.0,0.00016873,2]
[350637957,1738012145346,-500.0,0.00016873,2]
[350637958,1738012145365,-500.0,0.00016873,2]
[350637959,1738012145386,-500.0,0.00016873,2]
[350637960,1738012145406,-500.0,0.00016873,2]
[350637961,1738012145425,-500.0,0.00016873,2]
[350637962,1738012145445,-500.0,0.00016873,2]
[350637963,1738012145466,-500.0,0.00016873,2]
[350637964,1738012145486,-136.77634178,0.00016873,2]
[350637965,1738012145513,-363.22365822,0.00016873,2]
[350637966,1738012145535,-500.0,0.00016873,2]
[350637967,1738012145558,-500.90532355,0.00016873,2]
[350637968,1738012145582,-500.0,0.00016873,2]
[350637969,1738012145609,-500.0,0.00016873,2]
[350637970,1738012145633,-604.93,0.00016873,2]
[350637971,1738012145654,-500.0,0.00016873,2]
[350637972,1738012145676,-500.0,0.00016873,2]
[350637973,1738012145697,-500.0,0.00016873,2]
[350637974,1738012145721,-500.0,0.00016873,2]
[350637975,1738012145743,-500.0,0.00016873,2]
[350637976,1738012145764,-500.0,0.00016873,2]
[350637977,1738012145786,-500.0,0.00016873,2]
[350637978,1738012145809,-500.0,0.00016873,2]
[350637979,1738012145829,-500.0,0.00016873,2]
[350637980,1738012145850,-500.0,0.00016873,2]
[350637981,1738012145871,-500.0,0.00016873,2]
[350637982,1738012145892,-351.16,0.00016873,2]
[350637983,1738012145913,-500.0,0.00016873,2]
[350637984,1738012145934,-500.0,0.00016873,2]
[350637985,1738012145956,-500.0,0.00016873,2]
[350637986,1738012145979,-24900.0,0.00016874,2]
[350637987,1738012145999,-1282.80919891,0.0001691,2]
[350637988,1738012146022,-500.0,0.0001701,2]
[350637989,1738012146045,-500.0,0.0001701,2]
[350637990,1738012146068,-526.54458044,0.0001701,2]
[350637991,1738012146090,-500.0,0.0001701,2]
[350637992,1738012146111,-500.0,0.0001701,2]
[350637993,1738012146135,-500.0,0.0001701,2]
[350637994,1738012146271,-823.16,0.0001701,2]
[350637995,1738012146295,-522.18,0.0001701,2]
[350637996,1738012146322,-500.0,0.0001701,2]
[350637997,1738012146347,-500.0,0.0001701,2]
[350637998,1738012146369,-500.0,0.0001701,2]
[350637999,1738012146391,-500.0,0.0001701,2]
[350638000,1738012146413,-500.0,0.0001701,2]
[350638001,1738012146436,-500.0,0.0001701,2]
[350638002,1738012146457,-500.0,0.0001701,2]
[350638003,1738012146479,-500.0,0.0001701,2]
[350638004,1738012146501,-604.93,0.0001701,2]
[350638005,1738012146522,-500.0,0.0001701,2]
[350638006,1738012146545,-500.0,0.0001701,2]
[350638007,1738012146569,-500.0,0.0001701,2]
[350638008,1738012146593,-500.0,0.0001701,2]
[350638009,1738012146615,-500.0,0.0001701,2]
[350638010,1738012146638,-500.0,0.0001701,2]
[350638011,1738012146659,-500.0,0.0001701,2]
[350638012,1738012146682,-500.0,0.0001701,2]
[350638013,1738012146702,-332.1284359,0.00017114,2]
[350638014,1738012146725,-500.0,0.00017147,2]
[350638015,1738012146746,-500.0,0.00017147,2]
[350638016,1738012146767,-500.0,0.00017147,2]
[350638017,1738012146788,-500.0,0.00017147,2]
[350638018,1738012146813,-500.0,0.00017147,2]
[350638019,1738012146837,-823.16,0.00017147,2]
[350638020,1738012146859,-522.18,0.00017147,2]
[350638021,1738012146881,-500.0,0.00017147,2]
[350638022,1738012146903,-500.0,0.00017147,2]
[350638023,1738012146924,-500.0,0.00017147,2]
[350638024,1738012146947,-500.0,0.00017147,2]
[350638025,1738012146969,-500.0,0.00017147,2]
[350638026,1738012146990,-500.0,0.00017147,2]
[350638027,1738012147012,-500.0,0.00017147,2]
[350638028,1738012147035,-604.93,0.00017147,2]
[350638029,1738012147061,-500.0,0.00017147,2]
[350638030,1738012147083,-500.0,0.00017147,2]
[350638031,1738012147106,-500.0,0.00017147,2]
[350638032,1738012147128,-500.0,0.00017147,2]
[350638033,1738012147150,-500.0,0.00017147,2]
[350638034,1738012147172,-500.0,0.00017147,2]
[350638035,1738012147192,-269.724553,0.0001721,2]
[350638036,1738012147212,-5175.1034963,0.0001723,2]
[350638037,1738012147235,-500.0,0.00017284,2]
[350638038,1738012147256,-500.0,0.00017284,2]
[350638039,1738012147278,-500.0,0.00017284,2]
[350638040,1738012147303,-500.0,0.00017284,2]
[350638041,1738012147327,-823.16,0.00017284,2]
[350638042,1738012147352,-522.18,0.00017284,2]
[350638043,1738012147375,-500.0,0.00017284,2]
[350638044,1738012147397,-500.0,0.00017284,2]
[350638045,1738012147418,-500.0,0.00017284,2]
[350638046,1738012147440,-500.0,0.00017284,2]
[350638047,1738012147462,-500.0,0.00017284,2]
[350638048,1738012147484,-604.93,0.00017284,2]
[350638049,1738012147507,-500.0,0.00017284,2]
[350638050,1738012147529,-500.0,0.00017284,2]
[350638051,1738012147553,-218.24,0.00017284,2]
[350638052,1738012147575,-500.0,0.00017284,2]
[350638053,1738012147603,-500.0,0.00017284,2]
[350638054,1738012147627,-500.0,0.00017421,2]
[350638055,1738012147651,-500.0,0.00017421,2]
[350638056,1738012147672,-619.04,0.00017421,2]
[350638057,1738012147696,-500.0,0.00017421,2]
[350638058,1738012147721,-823.16,0.00017421,2]
[350638059,1738012147744,-522.18,0.00017421,2]
[350638060,1738012147768,-500.0,0.00017421,2]
[350638061,1738012147791,-500.0,0.00017421,2]
[350638062,1738012147819,-500.0,0.00017421,2]
[350638063,1738012147852,-500.0,0.00017421,2]
[350638064,1738012147874,-604.93,0.00017421,2]
[350638065,1738012147897,-500.0,0.00017421,2]
[350638066,1738012147921,-500.0,0.00017421,2]
[350638067,1738012147944,-500.0,0.00017558,2]
[350638068,1738012147966,-451.73786314,0.00017558,2]
[350638069,1738012147989,-500.0,0.00017558,2]
[350638070,1738012148023,-823.16,0.00017558,2]
[350638071,1738012148053,-522.18,0.00017558,2]
[350638072,1738012148078,-444.07,0.00017558,2]
[350638073,1738012148105,-500.0,0.00017558,2]
[350638074,1738012148130,-500.0,0.00017558,2]
[350638075,1738012148157,-604.93,0.00017558,2]
[350638076,1738012148184,-500.0,0.00017558,2]
[350638077,1738012148208,-500.0,0.00017558,2]
[350638078,1738012148228,-156.58499453,0.00017639,2]
[350638079,1738012148249,-500.0,0.00017694,2]
[350638080,1738012148270,-500.0,0.00017694,2]
[350638081,1738012148292,-500.0,0.00017694,2]
[350638082,1738012148317,-199.48982447,0.00017694,2]
[350638083,1738012148341,-500.0,0.00017694,2]
[350638084,1738012148362,-500.0,0.00017694,2]
[350638085,1738012148383,-458.8662496,0.00017694,2]
[350638086,1738012148407,-210.81730611,0.00017694,2]
[350638087,1738012148433,-444.16684697,0.00017694,2]
[350638088,1738012148459,-500.0,0.00017694,2]
[350638089,1738012148481,-500.0,0.00017694,2]
[350638090,1738012148506,-312.0,0.00017694,2]
[350638091,1738012148530,-500.0,0.00017694,2]
[350638092,1738012148558,-500.0,0.00017694,2]
[350638093,1738012148580,-500.0,0.00017694,2]
[350638094,1738012148605,-500.0,0.00017694,2]
[350638095,1738012148629,-500.0,0.00017694,2]
[350638096,1738012148652,-500.0,0.00017694,2]
[350638097,1738012148676,-500.0,0.00017694,2]
[350638098,1738012148697,-467.36423811,0.00017694,2]
[350638099,1738012148719,-500.0,0.00017695,2]
[350638100,1738012148742,-500.0,0.00017695,2]
[350638101,1738012148764,-823.16,0.00017695,2]
[350638102,1738012148788,-522.18,0.00017695,2]
[350638103,1738012148813,-194.84696286,0.00017695,2]
[350638104,1738012148835,-500.0,0.00017695,2]
[350638105,1738012148857,-604.93,0.00017695,2]
[350638106,1738012148879,-500.0,0.00017695,2]
[350638107,1738012148902,-500.0,0.00017695,2]
[350638108,1738012149032,-500.0,0.00017832,2]
[350638109,1738012149061,-500.0,0.00017832,2]
[350638110,1738012149085,-823.16,0.00017832,2]
[350638111,1738012149108,-522.18,0.00017832,2]
[350638112,1738012149130,-500.0,0.00017832,2]
[350638113,1738012149152,-604.93,0.00017832,2]
[350638114,1738012149176,-500.0,0.00017832,2]
[350638115,1738012149199,-500.0,0.00017969,2]
[350638116,1738012149222,-500.0,0.00017969,2]
[350638117,1738012149246,-823.16,0.00017969,2]
[350638118,1738012149270,-522.18,0.00017969,2]
[350638119,1738012149293,-500.0,0.00017969,2]
[350638120,1738012149319,-604.93,0.00017969,2]
[350638121,1738012149342,-500.0,0.00017969,2]
[350638122,1738012149364,-11663.35265256,0.00017971,2]
[350638123,1738012149387,-449.83183016,0.00018006,2]
[350638124,1738012149410,-500.0,0.00018089,2]
[350638125,1738012149441,-500.0,0.00018089,2]
[350638126,1738012149465,-22.17299298,0.00018089,2]
[350638127,1738012163172,-477.82700702,0.00016873,2]
[350638128,1738012163198,-500.0,0.00016873,2]
[350638129,1738012163224,-500.0,0.00016873,2]
[350638130,1738012163250,-500.0,0.00016873,2]
[350638131,1738012163278,-259.47805028,0.0001701,2]
[350638132,1738012168169,-500.0,0.00016873,2]
[350638133,1738012168194,-500.0,0.00016873,2]
[350638134,1738012168219,-55.74333115,0.0001701,2]
[350638135,1738012168242,-500.0,0.0001701,2]
[350638136,1738012168267,-409.60978627,0.0001701,2]
[350638183,1738012232355,-300.0,0.00016872,2]
[350638185,1738012232364,-500.0,0.00016873,2]
[350638187,1738012232374,-1107.31,0.00016873,2]
[350638189,1738012232382,-500.0,0.00016873,2]
[350638191,1738012232391,-500.0,0.00016873,2]
[350638193,1738012232400,-500.0,0.00016873,2]
[350638195,1738012232409,-500.0,0.00016873,2]
[350638197,1738012232418,-514.47,0.00016873,2]
[350638199,1738012232427,-500.0,0.00016873,2]
[350638201,1738012232436,-500.0,0.00016873,2]
[350638203,1738012232445,-3514.88563456,0.00016873,2]
[350638205,1738012232456,-624.07436544,0.00016873,2]
[350638207,1738012232465,-90.39021373,0.0001701,2]
[350638209,1738012232475,-500.0,0.0001701,2]
[350638211,1738012232483,-1107.31,0.0001701,2]
[350638213,1738012232492,-500.0,0.0001701,2]
[350638215,1738012232501,-500.0,0.0001701,2]
[350638217,1738012232510,-500.0,0.0001701,2]
[350638219,1738012232519,-580.07174279,0.0001701,2]
[350638221,1738012232528,-514.47,0.0001701,2]
[350638223,1738012232537,-500.0,0.0001701,2]
[350638225,1738012232546,-500.0,0.0001701,2]
[350638227,1738012232555,-4138.96,0.0001701,2]
[350638229,1738012232563,-1107.31,0.00017147,2]
[350638231,1738012232572,-500.0,0.00017147,2]
[350638233,1738012232581,-500.0,0.00017147,2]
[350638235,1738012232590,-500.0,0.00017147,2]
[350638238,1738012232600,-514.47,0.00017147,2]
[350638240,1738012232609,-500.0,0.00017147,2]
[350638242,1738012232620,-4138.96,0.00017147,2]
[350638244,1738012232632,-1107.31,0.00017284,2]
[350638246,1738012232641,-500.0,0.00017284,2]
[350638248,1738012232649,-500.0,0.00017284,2]
[350638250,1738012232658,-500.0,0.00017284,2]
[350638252,1738012232669,-514.47,0.00017284,2]
[350638254,1738012232678,-500.0,0.00017284,2]
[350638256,1738012232687,-1267.76028485,0.00017284,2]
[350638259,1738012232703,-2871.19971515,0.00017284,2]
[350638261,1738012232712,-1107.31,0.00017421,2]
[350638263,1738012232721,-500.0,0.00017421,2]
[350638265,1738012232730,-500.0,0.00017421,2]
[350638267,1738012232739,-500.0,0.00017421,2]
[350638269,1738012232748,-514.47,0.00017421,2]
[350638271,1738012232757,-500.0,0.00017421,2]
[350638273,1738012232766,-4138.96,0.00017421,2]
[350638275,1738012232775,-1107.31,0.00017558,2]
[350638276,1738012232784,-500.0,0.00017558,2]
[350638278,1738012232793,-500.0,0.00017558,2]
[350638280,1738012232802,-500.0,0.00017558,2]
[350638282,1738012232811,-514.47,0.00017558,2]
[350638284,1738012232820,-500.0,0.00017558,2]
[350638286,1738012232829,-1107.31,0.00017695,2]
[350638288,1738012232839,-500.0,0.00017695,2]
[350638289,1738012232848,-500.0,0.00017695,2]
[350638290,1738012232858,-500.0,0.00017695,2]
[350638291,1738012232868,-498.7704988,0.00017695,2]
[350638292,1738012232880,-15.6995012,0.00017695,2]
[350638293,1738012232889,-500.0,0.00017695,2]
[350638294,1738012232898,-484.007168,0.0001773,2]
[350638295,1738012232909,-798.80203088,0.0001773,2]
[350638296,1738012232918,-500.0,0.00017832,2]
[350638297,1738012232927,-1107.31,0.00017832,2]
[350638298,1738012232936,-500.0,0.00017832,2]
[350638299,1738012232945,-500.0,0.00017832,2]
[350638300,1738012232954,-500.0,0.00017832,2]
[350638301,1738012232963,-514.47,0.00017832,2]
[350638302,1738012232971,-500.0,0.00017832,2]
[350638303,1738012232983,-500.0,0.00017969,2]
[350638304,1738012232992,-1107.31,0.00017969,2]
[350638305,1738012233001,-357.3,0.00017969,2]
[350638306,1738012233011,-500.0,0.00017969,2]
[350638307,1738012233020,-500.0,0.00017969,2]
[350638308,1738012233029,-514.47,0.00017969,2]
[350638309,1738012233038,-500.0,0.00017969,2]
[350638310,1738012233047,-500.0,0.00018089,2]
[350638311,1738012233056,-500.0,0.00018089,2]
[350638312,1738012233066,-500.0,0.00018089,2]
[350638313,1738012233076,-500.0,0.00018089,2]
[350638314,1738012233086,-363.04706565,0.00018089,2]
[350638315,1738012233095,-500.0,0.00018089,2]
[350638316,1738012233105,-500.0,0.00018089,2]
[350638317,1738012233114,-187.90687051,0.00018089,2]
[350638318,1738012233123,-500.0,0.00018089,2]
[350638319,1738012233132,-500.0,0.00018089,2]
[350638320,1738012233142,-500.0,0.00018089,2]
[350638321,1738012233152,-501.47475621,0.00018089,2]
[350638322,1738012233161,-507.44729102,0.00018089,2]
[350638323,1738012233171,-501.57378649,0.00018089,2]
[350638324,1738012233180,-502.89869813,0.00018089,2]
[350638325,1738012233189,-500.0,0.00018089,2]
[350638326,1738012233199,-500.0,0.00018089,2]
[350638327,1738012233208,-500.0,0.00018089,2]
[350638328,1738012233217,-500.0,0.00018089,2]
[350638329,1738012233227,-500.0,0.00018089,2]
[350638330,1738012233236,-500.0,0.00018089,2]
[350638331,1738012233246,-500.0,0.00018106,2]
[350638332,1738012233255,-604.93,0.00018106,2]
[350638333,1738012233264,-500.0,0.00018106,2]
[350638334,1738012233273,-500.0,0.00018106,2]
[350638335,1738012233283,-1107.31,0.00018106,2]
[350638336,1738012233292,-500.0,0.00018106,2]
[350638337,1738012233301,-337.5734783,0.00018106,2]
[350638338,1738012233310,-514.47,0.00018106,2]
[350638339,1738012233320,-500.0,0.00018106,2]
[350638340,1738012233329,-500.0,0.0001812,2]
[350638341,1738012233339,-280.67950819,0.00018121,2]
[350638342,1738012233351,-219.32049181,0.00018121,2]
[350638343,1738012233360,-500.0,0.00018121,2]
[350638344,1738012233371,-295.07950819,0.00018121,2]
[350638345,1738012233387,-259.27257556,0.00018121,2]
[350638346,1738012233396,-500.0,0.00018121,2]
[350638347,1738012233405,-501.12604377,0.00018121,2]
[350638348,1738012233414,-500.0,0.00018121,2]
[350638349,1738012233423,-501.00986453,0.00018121,2]
[350638350,1738012233432,-501.4970045,0.00018121,2]
[350638351,1738012233442,-500.0,0.00018121,2]
[350638352,1738012233451,-500.0,0.00018121,2]
[350638353,1738012233460,-500.0,0.00018121,2]
[350638354,1738012233470,-500.0,0.00018121,2]
[350638355,1738012233479,-105.58713095,0.00018121,2]
[350638356,1738012233490,-394.41286905,0.00018121,2]
[350638357,1738012233500,-500.0,0.00018121,2]
[350638358,1738012233509,-500.0,0.00018121,2]
[350638359,1738012233518,-500.78059609,0.00018121,2]
[350638360,1738012233527,-500.0,0.00018121,2]
[350638361,1738012233536,-500.0,0.00018121,2]
[350638362,1738012233546,-167.86235497,0.00018121,2]
[350638375,1738012238346,-411.711,0.00017558,2]
[350638376,1738012238358,-3727.249,0.00017558,2]
[350638377,1738012238369,-4138.96,0.00017695,2]
[350638378,1738012238378,-4138.96,0.00017832,2]
[350638379,1738012238387,-4138.96,0.00017969,2]
[350638380,1738012238398,-500.0,0.00018089,2]
[350638381,1738012238408,-4138.96,0.00018106,2]
[350638382,1738012238418,-329.70713757,0.0001812,2]
[350638383,1738012238427,-368.0,0.0001812,2]
[350638384,1738012238437,-332.13764503,0.00018121,2]
[350638385,1738012238447,-500.0,0.00018121,2]
[350638386,1738012238455,-500.0,0.00018121,2]
[350638387,1738012238465,-500.0,0.00018121,2]
[350638388,1738012238475,-500.0,0.00018121,2]
[350638389,1738012238485,-500.0,0.00018121,2]
[350638390,1738012238494,-500.0,0.00018121,2]
[350638391,1738012238503,-501.41700292,0.00018121,2]
[350638392,1738012238512,-500.0,0.00018121,2]
[350638393,1738012238521,-500.0,0.00018121,2]
[350638394,1738012238530,-500.0,0.00018121,2]
[350638395,1738012238539,-500.0,0.00018121,2]
[350638396,1738012238548,-501.02060968,0.00018121,2]
[350638397,1738012238556,-500.0,0.00018121,2]
[350638398,1738012238566,-500.0,0.00018121,2]
[350638399,1738012238575,-500.0,0.00018121,2]
[350638400,1738012238584,-500.0,0.00018121,2]
[350638401,1738012238592,-500.0,0.00018121,2]
[350638402,1738012238601,-500.0,0.00018121,2]
[350638403,1738012238611,-500.0,0.00018121,2]
[350638404,1738012238624,-500.0,0.00018121,2]
[350638405,1738012238633,-500.0,0.00018121,2]
[350638406,1738012238642,-500.0,0.00018121,2]
[350638407,1738012238651,-500.0,0.00018121,2]
[350638408,1738012238662,-500.0,0.00018121,2]
[350638409,1738012238672,-500.0,0.00018121,2]
[350638410,1738012238681,-500.0,0.00018121,2]
[350638411,1738012238690,-500.0,0.00018121,2]
[350638412,1738012238699,-410.29659809,0.00018121,2]
[350638413,1738012238709,-500.0,0.00018121,2]
[350638414,1738012238718,-508.46368533,0.00018121,2]
[350638415,1738012238727,-500.0,0.00018121,2]
[350638416,1738012238736,-552.4095296,0.00018121,2]
[350638417,1738012238745,-500.0,0.00018121,2]
[350638418,1738012238754,-500.0,0.00018121,2]
[350638419,1738012238762,-500.0,0.00018121,2]
[350638420,1738012238771,-500.0,0.00018121,2]
[350638421,1738012238780,-500.0,0.00018121,2]
[350638422,1738012238789,-500.0,0.00018121,2]
[350638423,1738012238798,-500.0,0.00018121,2]
[350638424,1738012238807,-500.0,0.00018121,2]
[350638425,1738012238816,-500.0,0.00018121,2]
[350638427,1738012238825,-500.0,0.00018121,2]
[350638428,1738012238834,-186.93177399,0.00018121,2]
[350638430,1738012238843,-2158.65,0.00018121,2]
[350638432,1738012238852,-500.0,0.00018121,2]
[350638434,1738012238861,-500.0,0.00018121,2]
[350638435,1738012238871,-396.02622332,0.00018121,2]
[350638438,1738012238880,-500.0,0.00018121,2]
[350638439,1738012238992,-500.0,0.00018121,2]
[350638440,1738012239002,-500.0,0.00018121,2]
[350638441,1738012239011,-500.0,0.00018121,2]
[350638442,1738012239021,-500.0,0.00018121,2]
[350638443,1738012239030,-500.0,0.00018121,2]
[350638444,1738012239039,-500.0,0.00018121,2]
[350638445,1738012239048,-500.0,0.00018121,2]
[350638446,1738012239057,-500.0,0.00018121,2]
[350638447,1738012239067,-500.0,0.00018121,2]
[350638448,1738012239076,-500.0,0.00018121,2]
[350638449,1738012239085,-500.0,0.00018121,2]
[350638450,1738012239094,-500.0,0.00018121,2]
[350638451,1738012239103,-500.0,0.00018121,2]
[350638452,1738012239112,-500.0,0.00018121,2]
[350638453,1738012239123,-502.05135135,0.00018121,2]
[350638454,1738012239132,-500.0,0.00018121,2]
[350638455,1738012239141,-248.94755676,0.00018121,2]
[350638456,1738012239150,-500.0,0.00018121,2]
[350638457,1738012239159,-500.0,0.00018121,2]
[350638458,1738012239168,-502.47883015,0.00018121,2]
[350638459,1738012239176,-500.0,0.00018121,2]
[350638460,1738012239185,-500.0,0.00018121,2]
[350638461,1738012239194,-500.0,0.00018121,2]
[350638462,1738012239203,-500.0,0.00018121,2]
[350638463,1738012239212,-501.10364396,0.00018121,2]
[350638464,1738012239221,-500.0,0.00018121,2]
[350638465,1738012239230,-500.0,0.00018121,2]
[350638466,1738012239240,-501.51787242,0.00018121,2]
[350638467,1738012239248,-500.0,0.00018121,2]
[350638468,1738012239258,-500.0,0.00018121,2]
[350638469,1738012239267,-500.0,0.00018121,2]
[350638470,1738012239276,-500.0,0.00018121,2]
[350638471,1738012239285,-504.70023193,0.00018121,2]
[350638472,1738012239294,-500.0,0.00018121,2]
[350638473,1738012239303,-500.0,0.00018121,2]
[350638474,1738012239314,-510.00735202,0.00018121,2]
[350638475,1738012239323,-500.0,0.00018121,2]
[350638476,1738012239332,-503.46073498,0.00018121,2]
[350638477,1738012239342,-500.0,0.00018121,2]
[350638478,1738012239355,-500.0,0.00018121,2]
[350638479,1738012239365,-500.0,0.00018121,2]
[350638480,1738012239379,-500.0,0.00018121,2]
[350638481,1738012239388,-500.0,0.00018121,2]
[350638482,1738012239397,-500.0,0.00018121,2]
[350638483,1738012239406,-500.0,0.00018121,2]
[350638484,1738012239415,-500.0,0.00018121,2]
[350638485,1738012239424,-500.0,0.00018121,2]
[350638486,1738012239433,-500.0,0.00018121,2]
[350638487,1738012239442,-500.0,0.00018121,2]
[350638488,1738012239451,-500.0,0.00018121,2]
[350638489,1738012239461,-500.0,0.00018121,2]
[350638490,1738012239470,-500.0,0.00018121,2]
[350638491,1738012239479,-500.0,0.00018121,2]
[350638492,1738012239488,-228.92033519,0.00018121,2]
[350638493,1738012239497,-500.0,0.00018121,2]
[350638494,1738012239506,-500.0,0.00018121,2]
[350638495,1738012239514,-500.0,0.00018121,2]
[350638496,1738012239524,-500.0,0.00018121,2]
[350638497,1738012239533,-500.0,0.00018121,2]
[350638498,1738012239542,-500.0,0.00018121,2]
[350638499,1738012239551,-500.0,0.00018121,2]
[350638500,1738012239561,-500.0,0.00018121,2]
[350638501,1738012239571,-500.0,0.00018121,2]
[350638502,1738012239581,-500.0,0.00018121,2]
[350638504,1738012239591,-500.0,0.00018121,2]
[350638506,1738012239600,-500.0,0.00018121,2]
[350638508,1738012239610,-500.5335666,0.00018121,2]
[350638510,1738012239621,-500.0,0.00018121,2]
[350638512,1738012239631,-501.15153586,0.00018121,2]
[350638514,1738012239641,-500.0,0.00018121,2]
[350638516,1738012239650,-500.0,0.00018121,2]
[350638518,1738012239658,-500.0,0.00018121,2]
[350638520,1738012239669,-500.0,0.00018121,2]
[350638522,1738012239677,-500.0,0.00018121,2]
[350638523,1738012239686,-500.0,0.00018121,2]
[350638524,1738012239695,-500.0,0.00018121,2]
[350638525,1738012239705,-500.0,0.00018121,2]
[350638526,1738012239716,-500.0,0.00018121,2]
[350638527,1738012239725,-500.0,0.00018226,2]
[350638529,1738012239735,-589.18,0.00018226,2]
[350638531,1738012239744,-500.0,0.00018226,2]
[350638533,1738012239753,-500.0,0.00018226,2]
[350638535,1738012239763,-500.0,0.00018226,2]
[350638537,1738012239773,-500.0,0.00018226,2]
[350638539,1738012239782,-500.0,0.00018226,2]
[350638542,1738012239791,-500.0,0.00018226,2]
[350638545,1738012239801,-214.95146102,0.00018242,2]
[350638548,1738012239811,-372.90128884,0.00018242,2]
[350638551,1738012239820,-500.0,0.00018242,2]
[350638553,1738012239829,-500.0,0.00018243,2]
[350638555,1738012239838,-604.93,0.00018243,2]
[350638557,1738012239847,-500.0,0.00018243,2]
[350638559,1738012239855,-500.0,0.00018243,2]
[350638561,1738012239864,-1107.31,0.00018243,2]
[350638563,1738012239875,-500.0,0.00018243,2]
[350638565,1738012239885,-514.47,0.00018243,2]
[350638567,1738012239894,-500.0,0.00018243,2]
[350638569,1738012239904,-4138.96,0.00018243,2]
[350638572,1738012239913,-416.60585428,0.00018258,2]
[350638574,1738012239922,-500.0,0.00018258,2]
[350638577,1738012239932,-500.0,0.00018258,2]
[350638580,1738012239941,-500.0,0.00018258,2]
[350638582,1738012239950,-500.0,0.00018258,2]
[350638584,1738012239959,-500.0,0.00018258,2]
[350638587,1738012239968,-500.0,0.00018258,2]
[350638589,1738012239977,-500.0,0.00018258,2]
[350638592,1738012239987,-500.0,0.00018258,2]
[350638595,1738012239996,-500.0,0.00018258,2]
[350638597,1738012240005,-500.0,0.00018258,2]
[350638599,1738012240014,-523.78,0.00018258,2]
[350638601,1738012240023,-500.0,0.00018258,2]
[350638604,1738012240032,-500.0,0.00018258,2]
[350638606,1738012240041,-500.0,0.00018258,2]
[350638608,1738012240051,-500.0,0.00018258,2]
[350638610,1738012240059,-500.0,0.00018258,2]
[350638612,1738012240068,-500.0,0.00018258,2]
[350638614,1738012240078,-500.0,0.00018258,2]
[350638617,1738012240086,-306.60071304,0.00018258,2]
[350638619,1738012240098,-500.0,0.00018258,2]
[350638621,1738012240106,-500.0,0.00018258,2]
[350638623,1738012240115,-500.0,0.00018258,2]
[350638625,1738012240127,-2158.65,0.00018258,2]
[350638627,1738012240136,-500.0,0.00018258,2]
[350638629,1738012240145,-500.0,0.00018258,2]
[350638631,1738012240155,-500.0,0.00018258,2]
[350638633,1738012240164,-500.0,0.00018258,2]
[350638635,1738012240173,-500.0,0.00018258,2]
[350638636,1738012240182,-500.0,0.00018258,2]
[350638638,1738012240191,-500.0,0.00018258,2]
[350638640,1738012240200,-500.0,0.00018258,2]
[350638642,1738012240210,-500.0,0.00018258,2]
[350638644,1738012240219,-227.17351273,0.00018258,2]
[350638646,1738012240228,-500.0,0.00018258,2]
[350638648,1738012240237,-500.0,0.00018258,2]